[Event "Titled Tuesday Blitz January 17 Late 2023"]
[White "Zierk, Steven"]
[Black "Nasuta, Grzegorz"]
[WhiteFideId "2034255"]
[BlackFideId "1141686"]
[WhiteElo "2488"]
[BlackElo "2552"]
[Result "1/2-1/2"]
[Round "06"]
[TimeControl "180+2"]
[Date "2023.01.17"]
[WhiteClock "0:00:08"]
[BlackClock "0:00:05"]

1. e4 {[%clk 0:03:00]}  c5 {[%clk 0:02:58]} 2. Nf3 {[%clk 0:03:00]}  d6 {[%clk 0:02:57]} 3. d4 {[%clk 0:03:00]}  cxd4 {[%clk 0:02:58]} 4. Nxd4 {[%clk 0:03:01]}  Nf6 {[%clk 0:02:58]} 5. Nc3 {[%clk 0:03:02]}  a6 {[%clk 0:02:58]} 6. h3 {[%clk 0:03:01]}  e6 {[%clk 0:02:58]} 7. g4 {[%clk 0:03:01]}  h6 {[%clk 0:02:58]} 8. Bg2 {[%clk 0:03:00]}  Be7 {[%clk 0:02:58]} 9. Be3 {[%clk 0:02:57]}  Nc6 {[%clk 0:02:57]} 10. Nxc6 {[%clk 0:02:39]}  bxc6 {[%clk 0:02:58]} 11. e5 {[%clk 0:02:40]}  Nd5 {[%clk 0:02:57]} 12. exd6 {[%clk 0:02:40]}  Qxd6 {[%clk 0:02:48]} 13. Qd2 {[%clk 0:02:32]}  Qb4 {[%clk 0:02:32]} 14. Bd4 {[%clk 0:02:22]}  O-O {[%clk 0:02:28]} 15. Ne4 {[%clk 0:02:17]}  c5 {[%clk 0:02:06]} 16. c3 {[%clk 0:02:11]}  cxd4 {[%clk 0:01:48]} 17. cxb4 {[%clk 0:02:06]}  Bxb4 {[%clk 0:01:48]} 18. Nc3 {[%clk 0:01:59]}  dxc3 {[%clk 0:01:38]} 19. bxc3 {[%clk 0:01:59]}  Bxc3 {[%clk 0:01:37]} 20. Qxc3 {[%clk 0:01:59]}  Nxc3 {[%clk 0:01:38]} 21. Bxa8 {[%clk 0:01:59]}  Bd7 {[%clk 0:01:37]} 22. Bf3 {[%clk 0:01:55]}  Bb5 {[%clk 0:01:32]} 23. Kd2 {[%clk 0:01:53]}  Na4 {[%clk 0:01:32]} 24. Rhd1 {[%clk 0:01:45]}  f5 {[%clk 0:01:32]} 25. Ke3 {[%clk 0:01:41]}  Nb2 {[%clk 0:01:30]} 26. Rdc1 {[%clk 0:01:23]}  Nc4+ {[%clk 0:01:25]} 27. Kd4 {[%clk 0:01:23]}  Rd8+ {[%clk 0:01:01]} 28. Kc5 {[%clk 0:01:21]}  Ne5 {[%clk 0:01:02]} 29. Bb7 {[%clk 0:01:09]}  Nd3+ {[%clk 0:01:01]} 30. Kb6 {[%clk 0:01:09]}  Nxc1 {[%clk 0:01:01]} 31. Rxc1 {[%clk 0:01:10]}  fxg4 {[%clk 0:00:55]} 32. hxg4 {[%clk 0:01:09]}  Rd2 {[%clk 0:00:56]} 33. Bc8 {[%clk 0:01:00]}  Kf7 {[%clk 0:00:51]} 34. Re1 {[%clk 0:00:56]}  Rxf2 {[%clk 0:00:46]} 35. Bxe6+ {[%clk 0:00:56]}  Kf6 {[%clk 0:00:46]} 36. Bb3 {[%clk 0:00:51]}  Kg5 {[%clk 0:00:44]} 37. a4 {[%clk 0:00:46]}  Be2 {[%clk 0:00:42]} 38. Be6 {[%clk 0:00:41]}  g6 {[%clk 0:00:25]} 39. a5 {[%clk 0:00:37]}  Bb5 {[%clk 0:00:23]} 40. Bc8 {[%clk 0:00:36]}  Rf6+ {[%clk 0:00:22]} 41. Ka7 {[%clk 0:00:35]}  h5 {[%clk 0:00:17]} 42. gxh5 {[%clk 0:00:31]}  gxh5 {[%clk 0:00:18]} 43. Re5+ {[%clk 0:00:31]}  Kh6 {[%clk 0:00:17]} 44. Rc5 {[%clk 0:00:27]}  h4 {[%clk 0:00:16]} 45. Bg4 {[%clk 0:00:27]}  Rg6 {[%clk 0:00:16]} 46. Rh5+ {[%clk 0:00:26]}  Kg7 {[%clk 0:00:15]} 47. Rxh4 {[%clk 0:00:27]}  Kf6 {[%clk 0:00:13]} 48. Bc8 {[%clk 0:00:25]}  Ke5 {[%clk 0:00:13]} 49. Rh7 {[%clk 0:00:20]}  Kd4 {[%clk 0:00:12]} 50. Rc7 {[%clk 0:00:20]}  Rd6 {[%clk 0:00:11]} 51. Bb7 {[%clk 0:00:20]}  Rf6 {[%clk 0:00:10]} 52. Rc2 {[%clk 0:00:19]}  Rh6 {[%clk 0:00:07]} 53. Bg2 {[%clk 0:00:17]}  Rf6 {[%clk 0:00:07]} 54. Rc7 {[%clk 0:00:17]}  Rh6 {[%clk 0:00:07]} 55. Bb7 {[%clk 0:00:16]}  Rf6 {[%clk 0:00:06]} 56. Bc8 {[%clk 0:00:17]}  Rh6 {[%clk 0:00:06]} 57. Bg4 {[%clk 0:00:12]}  Rf6 {[%clk 0:00:05]} 58. Bd7 {[%clk 0:00:10]}  Rf7 {[%clk 0:00:04]} 59. Kb6 {[%clk 0:00:07]}  Rxd7 {[%clk 0:00:03]} 60. Rxd7+ {[%clk 0:00:08]}  Bxd7 {[%clk 0:00:04]} 61. Kxa6 {[%clk 0:00:08]}  Kc5 {[%clk 0:00:04]} 62. Kb7 {[%clk 0:00:08]}  Bc6+ {[%clk 0:00:04]} 63. Kc7 {[%clk 0:00:08]}  Bb5 {[%clk 0:00:05]} 64. a6 {[%clk 0:00:08]}  Bxa6 {[%clk 0:00:05]} 1/2-1/2


[Site "https://www.chess.com"]

[Event "Titled Tuesday Blitz January 17 Late 2023"]
[White "Zakhartsov, Vladimir"]
[Black "Dimitrov, Atanas"]
[WhiteFideId "4145097"]
[BlackFideId "2901315"]
[WhiteElo "2552"]
[BlackElo "2269"]
[Result "1-0"]
[Round "06"]
[TimeControl "180+2"]
[Date "2023.01.17"]
[WhiteClock "0:01:01"]
[BlackClock "0:00:29"]

1. e4 {[%clk 0:02:56]}  c5 {[%clk 0:03:00]} 2. Nf3 {[%clk 0:02:56]}  d6 {[%clk 0:03:00]} 3. c3 {[%clk 0:02:55]}  Nf6 {[%clk 0:03:00]} 4. Bd3 {[%clk 0:02:55]}  g6 {[%clk 0:03:00]} 5. h3 {[%clk 0:02:55]}  Bg7 {[%clk 0:03:00]} 6. Bc2 {[%clk 0:02:56]}  O-O {[%clk 0:03:00]} 7. d4 {[%clk 0:02:56]}  cxd4 {[%clk 0:03:00]} 8. cxd4 {[%clk 0:02:57]}  Nc6 {[%clk 0:03:01]} 9. O-O {[%clk 0:02:57]}  b6 {[%clk 0:02:48]} 10. Nc3 {[%clk 0:02:56]}  Bb7 {[%clk 0:02:47]} 11. Re1 {[%clk 0:02:55]}  Rc8 {[%clk 0:02:46]} 12. Bf4 {[%clk 0:02:54]}  Na5 {[%clk 0:02:26]} 13. Qe2 {[%clk 0:02:43]}  Nc4 {[%clk 0:02:21]} 14. Bd3 {[%clk 0:02:41]}  Na5 {[%clk 0:02:11]} 15. Rad1 {[%clk 0:02:38]}  a6 {[%clk 0:02:00]} 16. Bxa6 {[%clk 0:02:31]}  Bxa6 {[%clk 0:01:59]} 17. Qxa6 {[%clk 0:02:32]}  Nc4 {[%clk 0:01:59]} 18. Qb5 {[%clk 0:02:32]}  e6 {[%clk 0:01:45]} 19. e5 {[%clk 0:02:16]}  Nh5 {[%clk 0:01:43]} 20. Bh2 {[%clk 0:02:13]}  Bh6 {[%clk 0:01:34]} 21. d5 {[%clk 0:01:57]}  Rc5 {[%clk 0:01:32]} 22. Qb4 {[%clk 0:01:57]}  exd5 {[%clk 0:01:12]} 23. exd6 {[%clk 0:01:56]}  Bf4 {[%clk 0:00:55]} 24. Nxd5 {[%clk 0:01:39]}  Bxh2+ {[%clk 0:00:53]} 25. Nxh2 {[%clk 0:01:40]}  Qg5 {[%clk 0:00:43]} 26. Nf3 {[%clk 0:01:35]}  Qd8 {[%clk 0:00:36]} 27. d7 {[%clk 0:01:25]}  Kg7 {[%clk 0:00:35]} 28. Nxb6 {[%clk 0:01:22]}  Qxb6 {[%clk 0:00:30]} 29. Qxb6 {[%clk 0:01:22]}  Nxb6 {[%clk 0:00:31]} 30. d8=Q {[%clk 0:01:22]}  Rxd8 {[%clk 0:00:32]} 31. Rxd8 {[%clk 0:01:22]}  Nc4 {[%clk 0:00:32]} 32. Rc1 {[%clk 0:01:20]}  Nf4 {[%clk 0:00:32]} 33. Rc2 {[%clk 0:01:02]}  Ne6 {[%clk 0:00:29]} 34. Rd1 {[%clk 0:01:01]} 1-0


[Site "https://www.chess.com"]

[Event "Titled Tuesday Blitz January 17 Late 2023"]
[White "Sokolovsky, Yahli"]
[Black "Svane, Frederik"]
[WhiteFideId "2820242"]
[BlackFideId "12923044"]
[WhiteElo "2461"]
[BlackElo "2600"]
[Result "1/2-1/2"]
[Round "06"]
[TimeControl "180+2"]
[Date "2023.01.17"]
[WhiteClock "0:00:05"]
[BlackClock "0:00:19"]

1. b3 {[%clk 0:03:00]}  a5 {[%clk 0:02:58]} 2. Bb2 {[%clk 0:03:00]}  a4 {[%clk 0:02:58]} 3. b4 {[%clk 0:03:01]}  e6 {[%clk 0:02:57]} 4. a3 {[%clk 0:03:01]}  Nf6 {[%clk 0:02:56]} 5. c4 {[%clk 0:03:01]}  d5 {[%clk 0:02:53]} 6. e3 {[%clk 0:03:00]}  c5 {[%clk 0:02:44]} 7. bxc5 {[%clk 0:02:53]}  Bxc5 {[%clk 0:02:45]} 8. d4 {[%clk 0:02:46]}  Be7 {[%clk 0:02:39]} 9. Nf3 {[%clk 0:02:40]}  O-O {[%clk 0:02:38]} 10. Be2 {[%clk 0:02:40]}  dxc4 {[%clk 0:02:34]} 11. Bxc4 {[%clk 0:02:37]}  b5 {[%clk 0:02:34]} 12. Bxb5 {[%clk 0:02:18]}  Qb6 {[%clk 0:02:16]} 13. Nc3 {[%clk 0:02:08]}  Ba6 {[%clk 0:02:01]} 14. Qe2 {[%clk 0:01:47]}  Bxb5 {[%clk 0:01:46]} 15. Qxb5 {[%clk 0:01:47]}  Qxb5 {[%clk 0:01:44]} 16. Nxb5 {[%clk 0:01:48]}  Nbd7 {[%clk 0:01:43]} 17. Nc3 {[%clk 0:01:36]}  Rfb8 {[%clk 0:01:42]} 18. Rb1 {[%clk 0:01:35]}  Rb3 {[%clk 0:01:34]} 19. Nd2 {[%clk 0:01:32]}  Rb7 {[%clk 0:01:24]} 20. Ke2 {[%clk 0:01:28]}  Rab8 {[%clk 0:01:11]} 21. Nxa4 {[%clk 0:01:15]}  Nd5 {[%clk 0:01:11]} 22. Ba1 {[%clk 0:01:02]}  Bxa3 {[%clk 0:01:01]} 23. Rxb7 {[%clk 0:01:03]}  Rxb7 {[%clk 0:01:02]} 24. Rb1 {[%clk 0:01:03]}  Rxb1 {[%clk 0:00:39]} 25. Nxb1 {[%clk 0:01:04]}  Bd6 {[%clk 0:00:38]} 26. h3 {[%clk 0:00:57]}  f5 {[%clk 0:00:37]} 27. Nac3 {[%clk 0:00:58]}  N7f6 {[%clk 0:00:34]} 28. Nb5 {[%clk 0:00:44]}  Bb4 {[%clk 0:00:31]} 29. N1c3 {[%clk 0:00:39]}  Kf7 {[%clk 0:00:29]} 30. Bb2 {[%clk 0:00:38]}  Nxc3+ {[%clk 0:00:19]} 31. Bxc3 {[%clk 0:00:38]}  Be7 {[%clk 0:00:20]} 32. Bb2 {[%clk 0:00:36]}  Nd5 {[%clk 0:00:17]} 33. Ba3 {[%clk 0:00:34]}  Bf6 {[%clk 0:00:16]} 34. Bd6 {[%clk 0:00:30]}  Ke8 {[%clk 0:00:13]} 35. Na3 {[%clk 0:00:29]}  Kd7 {[%clk 0:00:13]} 36. Nc4 {[%clk 0:00:30]}  Nc3+ {[%clk 0:00:11]} 37. Ke1 {[%clk 0:00:30]}  Ne4 {[%clk 0:00:10]} 38. Be5 {[%clk 0:00:30]}  Bxe5 {[%clk 0:00:11]} 39. Nxe5+ {[%clk 0:00:31]}  Kd6 {[%clk 0:00:11]} 40. Ke2 {[%clk 0:00:30]}  Kd5 {[%clk 0:00:11]} 41. Nd3 {[%clk 0:00:30]}  Kd6 {[%clk 0:00:10]} 42. f3 {[%clk 0:00:24]}  Nc3+ {[%clk 0:00:10]} 43. Kd2 {[%clk 0:00:25]}  Nd5 {[%clk 0:00:11]} 44. Ne5 {[%clk 0:00:17]}  Ne7 {[%clk 0:00:08]} 45. Kd3 {[%clk 0:00:17]}  Nd5 {[%clk 0:00:09]} 46. Nc4+ {[%clk 0:00:16]}  Kd7 {[%clk 0:00:08]} 47. g3 {[%clk 0:00:16]}  Nf6 {[%clk 0:00:08]} 48. Ne5+ {[%clk 0:00:16]}  Kd6 {[%clk 0:00:08]} 49. Nc4+ {[%clk 0:00:16]}  Kd7 {[%clk 0:00:09]} 50. Nd2 {[%clk 0:00:17]}  Nd5 {[%clk 0:00:08]} 51. Nb1 {[%clk 0:00:16]}  Nb4+ {[%clk 0:00:08]} 52. Kd2 {[%clk 0:00:16]}  Nd5 {[%clk 0:00:09]} 53. Nc3 {[%clk 0:00:17]}  Nf6 {[%clk 0:00:09]} 54. Ne2 {[%clk 0:00:17]}  Kd6 {[%clk 0:00:09]} 55. Kd3 {[%clk 0:00:17]}  Kd7 {[%clk 0:00:09]} 56. Nf4 {[%clk 0:00:16]}  Kd6 {[%clk 0:00:09]} 57. h4 {[%clk 0:00:17]}  e5 {[%clk 0:00:09]} 58. dxe5+ {[%clk 0:00:14]}  Kxe5 {[%clk 0:00:10]} 59. Ne2 {[%clk 0:00:09]}  g6 {[%clk 0:00:09]} 60. Nd4 {[%clk 0:00:09]}  Kd5 {[%clk 0:00:09]} 61. Nb3 {[%clk 0:00:09]}  Nd7 {[%clk 0:00:10]} 62. Nd2 {[%clk 0:00:09]}  Ne5+ {[%clk 0:00:10]} 63. Ke2 {[%clk 0:00:09]}  Nd7 {[%clk 0:00:10]} 64. Nb3 {[%clk 0:00:09]}  Nf6 {[%clk 0:00:10]} 65. Nc1 {[%clk 0:00:09]}  Nd7 {[%clk 0:00:11]} 66. Nd3 {[%clk 0:00:10]}  Nf6 {[%clk 0:00:11]} 67. Nf4+ {[%clk 0:00:10]}  Ke5 {[%clk 0:00:12]} 68. Nh3 {[%clk 0:00:10]}  Nd7 {[%clk 0:00:11]} 69. Ng5 {[%clk 0:00:11]}  Nf6 {[%clk 0:00:12]} 70. Kd3 {[%clk 0:00:11]}  Kd5 {[%clk 0:00:12]} 71. Kd2 {[%clk 0:00:11]}  Ke5 {[%clk 0:00:12]} 72. Kc3 {[%clk 0:00:10]}  Kd5 {[%clk 0:00:13]} 73. Kd3 {[%clk 0:00:11]}  Ke5 {[%clk 0:00:13]} 74. Kc4 {[%clk 0:00:11]}  Nd5 {[%clk 0:00:01]} 75. f4+ {[%clk 0:00:06]}  Kd6 {[%clk 0:00:02]} 76. Kd4 {[%clk 0:00:07]}  Nf6 {[%clk 0:00:02]} 77. e4 {[%clk 0:00:07]}  Ke7 {[%clk 0:00:01]} 78. e5 {[%clk 0:00:07]}  Nh5 {[%clk 0:00:02]} 79. Nxh7 {[%clk 0:00:04]}  Nxg3 {[%clk 0:00:02]} 80. Ng5 {[%clk 0:00:04]}  Nh5 {[%clk 0:00:02]} 81. Ke3 {[%clk 0:00:04]}  Ng3 {[%clk 0:00:03]} 82. Kf3 {[%clk 0:00:04]}  Nh5 {[%clk 0:00:04]} 83. Nh3 {[%clk 0:00:04]}  Ng7 {[%clk 0:00:04]} 84. Nf2 {[%clk 0:00:05]}  Ne6 {[%clk 0:00:05]} 85. Nh1 {[%clk 0:00:05]}  Nd4+ {[%clk 0:00:05]} 86. Ke3 {[%clk 0:00:06]}  Ne6 {[%clk 0:00:06]} 87. Nf2 {[%clk 0:00:07]}  Ng7 {[%clk 0:00:06]} 88. Nd1 {[%clk 0:00:07]}  Ne6 {[%clk 0:00:06]} 89. Nc3 {[%clk 0:00:07]}  Nc7 {[%clk 0:00:07]} 90. Kd4 {[%clk 0:00:07]}  Ne6+ {[%clk 0:00:07]} 91. Ke3 {[%clk 0:00:07]}  Nc7 {[%clk 0:00:08]} 92. Kf3 {[%clk 0:00:08]}  Ne6 {[%clk 0:00:08]} 93. Nd5+ {[%clk 0:00:09]}  Kf7 {[%clk 0:00:08]} 94. Ke3 {[%clk 0:00:09]}  Ng7 {[%clk 0:00:09]} 95. Nc7 {[%clk 0:00:10]}  Ke7 {[%clk 0:00:09]} 96. Kf3 {[%clk 0:00:09]}  Nh5 {[%clk 0:00:09]} 97. Nb5 {[%clk 0:00:09]}  Ng7 {[%clk 0:00:09]} 98. Nd4 {[%clk 0:00:09]}  Kd7 {[%clk 0:00:09]} 99. Ne2 {[%clk 0:00:09]}  Ke7 {[%clk 0:00:09]} 100. Ng3 {[%clk 0:00:09]}  Ne6 {[%clk 0:00:09]} 101. h5 {[%clk 0:00:07]}  Kf7 {[%clk 0:00:10]} 102. hxg6+ {[%clk 0:00:02]}  Kxg6 {[%clk 0:00:10]} 103. Ne2 {[%clk 0:00:03]}  Kf7 {[%clk 0:00:10]} 104. Ke3 {[%clk 0:00:03]}  Ng7 {[%clk 0:00:09]} 105. Nd4 {[%clk 0:00:04]}  Ke7 {[%clk 0:00:10]} 106. Kf3 {[%clk 0:00:04]}  Kf7 {[%clk 0:00:10]} 107. Kg3 {[%clk 0:00:05]}  Nh5+ {[%clk 0:00:10]} 108. Kf3 {[%clk 0:00:06]}  Ng7 {[%clk 0:00:11]} 109. Ne2 {[%clk 0:00:06]}  Ke6 {[%clk 0:00:11]} 110. Kg3 {[%clk 0:00:07]}  Kf7 {[%clk 0:00:10]} 111. Kh4 {[%clk 0:00:08]}  Kg6 {[%clk 0:00:11]} 112. Nd4 {[%clk 0:00:07]}  Nh5 {[%clk 0:00:11]} 113. Ne6 {[%clk 0:00:07]}  Kh6 {[%clk 0:00:11]} 114. Kh3 {[%clk 0:00:05]}  Kg6 {[%clk 0:00:12]} 115. Kh4 {[%clk 0:00:03]}  Kh6 {[%clk 0:00:12]} 116. Kh3 {[%clk 0:00:02]}  Kg6 {[%clk 0:00:12]} 117. Kg2 {[%clk 0:00:03]}  Kf7 {[%clk 0:00:12]} 118. Ng5+ {[%clk 0:00:04]}  Ke7 {[%clk 0:00:13]} 119. Kf3 {[%clk 0:00:05]}  Ng7 {[%clk 0:00:13]} 120. Nh3 {[%clk 0:00:06]}  Ne6 {[%clk 0:00:13]} 121. Nf2 {[%clk 0:00:07]}  Nd4+ {[%clk 0:00:14]} 122. Ke3 {[%clk 0:00:07]}  Ne6 {[%clk 0:00:15]} 123. Nh1 {[%clk 0:00:07]}  Ng7 {[%clk 0:00:14]} 124. Ng3 {[%clk 0:00:08]}  Ke6 {[%clk 0:00:15]} 125. Kd4 {[%clk 0:00:09]}  Ne8 {[%clk 0:00:15]} 126. Nh5 {[%clk 0:00:08]}  Nc7 {[%clk 0:00:15]} 127. Nf6 {[%clk 0:00:09]}  Nb5+ {[%clk 0:00:15]} 128. Kc4 {[%clk 0:00:09]}  Nc7 {[%clk 0:00:15]} 129. Kc5 {[%clk 0:00:09]}  Kf7 {[%clk 0:00:15]} 130. Kd6 {[%clk 0:00:08]}  Ne6 {[%clk 0:00:15]} 131. Nh5 {[%clk 0:00:09]}  Nd4 {[%clk 0:00:15]} 132. Kd7 {[%clk 0:00:09]}  Ne6 {[%clk 0:00:15]} 133. Kc6 {[%clk 0:00:05]}  Nd4+ {[%clk 0:00:15]} 134. Kd5 {[%clk 0:00:05]}  Ne6 {[%clk 0:00:16]} 135. Kd6 {[%clk 0:00:06]}  Nd4 {[%clk 0:00:16]} 136. Kc7 {[%clk 0:00:06]}  Ne6+ {[%clk 0:00:16]} 137. Kd7 {[%clk 0:00:07]}  Nd4 {[%clk 0:00:17]} 138. Kd6 {[%clk 0:00:06]}  Ne6 {[%clk 0:00:17]} 139. Kd5 {[%clk 0:00:06]}  Nc7+ {[%clk 0:00:17]} 140. Kc6 {[%clk 0:00:06]}  Ne6 {[%clk 0:00:17]} 141. Kd7 {[%clk 0:00:06]}  Nd4 {[%clk 0:00:18]} 142. Ng3 {[%clk 0:00:05]}  Ne6 {[%clk 0:00:18]} 143. Nxf5 {[%clk 0:00:05]}  Nxf4 {[%clk 0:00:18]} 144. Nd6+ {[%clk 0:00:05]}  Kg6 {[%clk 0:00:18]} 145. Ke7 {[%clk 0:00:03]}  Nd5+ {[%clk 0:00:18]} 146. Kd8 {[%clk 0:00:03]}  Nf4 {[%clk 0:00:19]} 147. Kd7 {[%clk 0:00:04]}  Kg5 {[%clk 0:00:19]} 148. Nf7+ {[%clk 0:00:02]}  Kf5 {[%clk 0:00:19]} 149. Kd6 {[%clk 0:00:02]}  Kg6 {[%clk 0:00:18]} 150. Nd8 {[%clk 0:00:02]}  Kf5 {[%clk 0:00:18]} 151. Nb7 {[%clk 0:00:02]}  Ke4 {[%clk 0:00:18]} 152. Nc5+ {[%clk 0:00:03]}  Kf5 {[%clk 0:00:19]} 153. Nb3 {[%clk 0:00:03]}  Ke4 {[%clk 0:00:18]} 154. Nd2+ {[%clk 0:00:03]}  Kf5 {[%clk 0:00:19]} 155. Nc4 {[%clk 0:00:04]}  Ke4 {[%clk 0:00:19]} 156. Nb2 {[%clk 0:00:05]}  Kf5 {[%clk 0:00:19]} 157. Nd3 {[%clk 0:00:05]}  Nxd3 {[%clk 0:00:19]} 158. e6 {[%clk 0:00:05]}  Nf2 {[%clk 0:00:17]} 159. e7 {[%clk 0:00:03]}  Ne4+ {[%clk 0:00:18]} 160. Kd7 {[%clk 0:00:03]}  Nf6+ {[%clk 0:00:18]} 161. Kd8 {[%clk 0:00:04]}  Ke6 {[%clk 0:00:19]} 162. e8=Q+ {[%clk 0:00:05]}  Nxe8 {[%clk 0:00:19]} 1/2-1/2


[Site "https://www.chess.com"]

[Event "Titled Tuesday Blitz January 17 Late 2023"]
[White "Hansen, Eric"]
[Black "Milikow, Yoav"]
[WhiteFideId "2606771"]
[BlackFideId "2822237"]
[WhiteElo "2609"]
[BlackElo "2394"]
[Result "1-0"]
[Round "06"]
[TimeControl "180+2"]
[Date "2023.01.17"]
[WhiteClock "0:00:11"]
[BlackClock "0:00:15"]

1. Nf3 {[%clk 0:02:56]}  d5 {[%clk 0:02:58]} 2. d4 {[%clk 0:02:56]}  Nf6 {[%clk 0:02:55]} 3. c4 {[%clk 0:02:56]}  e6 {[%clk 0:02:54]} 4. Nc3 {[%clk 0:02:56]}  c5 {[%clk 0:02:47]} 5. e3 {[%clk 0:02:51]}  Nc6 {[%clk 0:02:44]} 6. cxd5 {[%clk 0:02:48]}  Nxd5 {[%clk 0:02:41]} 7. Bc4 {[%clk 0:02:43]}  Nb6 {[%clk 0:02:33]} 8. Bb5 {[%clk 0:02:42]}  Bd7 {[%clk 0:02:29]} 9. O-O {[%clk 0:02:24]}  cxd4 {[%clk 0:02:19]} 10. exd4 {[%clk 0:01:35]}  Be7 {[%clk 0:02:16]} 11. Re1 {[%clk 0:01:25]}  O-O {[%clk 0:02:15]} 12. a3 {[%clk 0:00:53]}  Rc8 {[%clk 0:01:58]} 13. Bd3 {[%clk 0:00:51]}  Nd5 {[%clk 0:01:38]} 14. Qe2 {[%clk 0:00:47]}  Nf6 {[%clk 0:01:35]} 15. Bg5 {[%clk 0:00:41]}  Re8 {[%clk 0:01:31]} 16. Rad1 {[%clk 0:00:41]}  Qb6 {[%clk 0:01:19]} 17. Bb1 {[%clk 0:00:35]}  h6 {[%clk 0:01:09]} 18. Bh4 {[%clk 0:00:34]}  Qb3 {[%clk 0:00:43]} 19. Ba2 {[%clk 0:00:27]}  Qb6 {[%clk 0:00:40]} 20. Ne5 {[%clk 0:00:21]}  Red8 {[%clk 0:00:27]} 21. Nxf7 {[%clk 0:00:10]}  Kxf7 {[%clk 0:00:26]} 22. Bxe6+ {[%clk 0:00:10]}  Bxe6 {[%clk 0:00:26]} 23. Qxe6+ {[%clk 0:00:11]}  Kf8 {[%clk 0:00:27]} 24. d5 {[%clk 0:00:11]}  Rd6 {[%clk 0:00:15]} 25. Qxc8+ {[%clk 0:00:11]} 1-0


[Site "https://www.chess.com"]

[Event "Titled Tuesday Blitz January 17 Late 2023"]
[White "Domingo Nunez, Ruben"]
[Black "Remizov, Yaroslav"]
[WhiteFideId "22245570"]
[BlackFideId "34134015"]
[WhiteElo "2416"]
[BlackElo "2421"]
[Result "1/2-1/2"]
[Round "06"]
[TimeControl "180+2"]
[Date "2023.01.17"]
[WhiteClock "0:00:03"]
[BlackClock "0:00:05"]

1. e4 {[%clk 0:03:00]}  c6 {[%clk 0:02:59]} 2. Nf3 {[%clk 0:02:59]}  d5 {[%clk 0:03:00]} 3. Nc3 {[%clk 0:03:00]}  dxe4 {[%clk 0:02:59]} 4. Nxe4 {[%clk 0:03:01]}  Nf6 {[%clk 0:03:00]} 5. Nxf6+ {[%clk 0:03:01]}  exf6 {[%clk 0:03:01]} 6. h3 {[%clk 0:03:01]}  Bd6 {[%clk 0:03:00]} 7. d4 {[%clk 0:03:02]}  O-O {[%clk 0:03:00]} 8. Be2 {[%clk 0:03:02]}  Re8 {[%clk 0:03:00]} 9. O-O {[%clk 0:03:03]}  Nd7 {[%clk 0:03:00]} 10. Re1 {[%clk 0:03:03]}  Nf8 {[%clk 0:03:00]} 11. c4 {[%clk 0:03:04]}  Ng6 {[%clk 0:03:00]} 12. Be3 {[%clk 0:03:05]}  Be6 {[%clk 0:03:00]} 13. Qb3 {[%clk 0:03:04]}  Qd7 {[%clk 0:03:00]} 14. Bf1 {[%clk 0:03:05]}  b5 {[%clk 0:02:55]} 15. d5 {[%clk 0:03:05]}  cxd5 {[%clk 0:02:53]} 16. Qxb5 {[%clk 0:03:02]}  Qd8 {[%clk 0:01:43]} 17. Rad1 {[%clk 0:02:42]}  Rb8 {[%clk 0:01:39]} 18. Qa4 {[%clk 0:02:41]}  Rxb2 {[%clk 0:01:18]} 19. cxd5 {[%clk 0:02:40]}  Bd7 {[%clk 0:00:57]} 20. Qxa7 {[%clk 0:02:40]}  Ne5 {[%clk 0:00:57]} 21. Nd4 {[%clk 0:02:36]}  Qa8 {[%clk 0:00:50]} 22. Nc6 {[%clk 0:01:43]}  Rxa2 {[%clk 0:00:42]} 23. Qb6 {[%clk 0:01:36]}  Bf8 {[%clk 0:00:27]} 24. Nxe5 {[%clk 0:01:27]}  fxe5 {[%clk 0:00:28]} 25. Bc4 {[%clk 0:01:24]}  Rc2 {[%clk 0:00:20]} 26. Bd3 {[%clk 0:01:21]}  Rb8 {[%clk 0:00:18]} 27. Qxb8 {[%clk 0:01:17]}  Qxb8 {[%clk 0:00:18]} 28. Bxc2 {[%clk 0:01:17]}  Bd6 {[%clk 0:00:18]} 29. Rb1 {[%clk 0:01:17]}  Qd8 {[%clk 0:00:17]} 30. Rb7 {[%clk 0:01:12]}  g6 {[%clk 0:00:15]} 31. Ra1 {[%clk 0:01:11]}  Qc8 {[%clk 0:00:11]} 32. Rb2 {[%clk 0:01:11]}  e4 {[%clk 0:00:09]} 33. Rc1 {[%clk 0:01:06]}  Qc3 {[%clk 0:00:05]} 34. Rb3 {[%clk 0:01:03]}  Qe5 {[%clk 0:00:04]} 35. g3 {[%clk 0:01:03]}  Bxh3 {[%clk 0:00:05]} 36. Rd1 {[%clk 0:00:40]}  Bg4 {[%clk 0:00:04]} 37. Rd4 {[%clk 0:00:36]}  Bf3 {[%clk 0:00:03]} 38. Bd1 {[%clk 0:00:27]}  Bxd1 {[%clk 0:00:03]} 39. Rxd1 {[%clk 0:00:28]}  Qh5 {[%clk 0:00:02]} 40. Rd4 {[%clk 0:00:20]}  Kg7 {[%clk 0:00:02]} 41. Rb1 {[%clk 0:00:17]}  Bc5 {[%clk 0:00:02]} 42. Rxe4 {[%clk 0:00:17]}  Qxd5 {[%clk 0:00:02]} 43. Re8 {[%clk 0:00:14]}  Bxe3 {[%clk 0:00:02]} 44. Rxe3 {[%clk 0:00:15]}  Qf5 {[%clk 0:00:02]} 45. Rbe1 {[%clk 0:00:16]}  h5 {[%clk 0:00:02]} 46. Re5 {[%clk 0:00:16]}  Qd3 {[%clk 0:00:02]} 47. R5e3 {[%clk 0:00:16]}  Qd4 {[%clk 0:00:02]} 48. Re4 {[%clk 0:00:17]}  Qc5 {[%clk 0:00:03]} 49. Rf4 {[%clk 0:00:17]}  Qd6 {[%clk 0:00:02]} 50. Ree4 {[%clk 0:00:17]}  Qa3 {[%clk 0:00:02]} 51. Re3 {[%clk 0:00:17]}  Qc1+ {[%clk 0:00:03]} 52. Kg2 {[%clk 0:00:18]}  Qc6+ {[%clk 0:00:04]} 53. Kh2 {[%clk 0:00:18]}  g5 {[%clk 0:00:04]} 54. Rf5 {[%clk 0:00:18]}  f6 {[%clk 0:00:04]} 55. Ra3 {[%clk 0:00:15]}  Kg6 {[%clk 0:00:04]} 56. Rff3 {[%clk 0:00:13]}  Qc2 {[%clk 0:00:03]} 57. Kg1 {[%clk 0:00:13]}  Qd1+ {[%clk 0:00:03]} 58. Kh2 {[%clk 0:00:13]}  Qe2 {[%clk 0:00:03]} 59. Rae3 {[%clk 0:00:12]}  Qf1 {[%clk 0:00:04]} 60. Re6 {[%clk 0:00:12]}  Qa1 {[%clk 0:00:03]} 61. Kg2 {[%clk 0:00:11]}  Qd4 {[%clk 0:00:03]} 62. Kh2 {[%clk 0:00:09]}  Qb2 {[%clk 0:00:03]} 63. Rc6 {[%clk 0:00:09]}  Qa1 {[%clk 0:00:03]} 64. Rd6 {[%clk 0:00:09]}  Qe5 {[%clk 0:00:03]} 65. Ra6 {[%clk 0:00:08]}  Qd4 {[%clk 0:00:04]} 66. Kg2 {[%clk 0:00:07]}  Qe5 {[%clk 0:00:03]} 67. Kg1 {[%clk 0:00:05]}  Qd4 {[%clk 0:00:04]} 68. Re3 {[%clk 0:00:05]}  h4 {[%clk 0:00:04]} 69. gxh4 {[%clk 0:00:05]}  Qxh4 {[%clk 0:00:04]} 70. Raa3 {[%clk 0:00:06]}  Qg4+ {[%clk 0:00:04]} 71. Rg3 {[%clk 0:00:07]}  Qd1+ {[%clk 0:00:04]} 72. Kg2 {[%clk 0:00:07]}  f5 {[%clk 0:00:05]} 73. Ra6+ {[%clk 0:00:07]}  Kf7 {[%clk 0:00:03]} 74. Rxg5 {[%clk 0:00:06]}  Qd5+ {[%clk 0:00:03]} 75. Kg1 {[%clk 0:00:03]}  Qd1+ {[%clk 0:00:03]} 76. Kh2 {[%clk 0:00:03]}  Qf3 {[%clk 0:00:03]} 77. Ra2 {[%clk 0:00:03]}  Qf4+ {[%clk 0:00:03]} 78. Rg3 {[%clk 0:00:03]}  Qh4+ {[%clk 0:00:03]} 79. Kg2 {[%clk 0:00:04]}  Qc4 {[%clk 0:00:04]} 80. Raa3 {[%clk 0:00:04]}  Qd5+ {[%clk 0:00:04]} 81. Raf3 {[%clk 0:00:04]}  Kf6 {[%clk 0:00:04]} 82. Rh3 {[%clk 0:00:04]}  Qe4 {[%clk 0:00:04]} 83. Rh6+ {[%clk 0:00:05]}  Kg5 {[%clk 0:00:04]} 84. Rh3 {[%clk 0:00:04]}  Kf6 {[%clk 0:00:05]} 85. Rh6+ {[%clk 0:00:04]}  Kg5 {[%clk 0:00:05]} 86. Rh8 {[%clk 0:00:04]}  Kg6 {[%clk 0:00:05]} 87. Rg8+ {[%clk 0:00:05]}  Kf7 {[%clk 0:00:06]} 88. Rg5 {[%clk 0:00:05]}  Ke6 {[%clk 0:00:05]} 89. Rxf5 {[%clk 0:00:05]}  Qg4+ {[%clk 0:00:06]} 90. Kf1 {[%clk 0:00:05]}  Qc4+ {[%clk 0:00:06]} 91. Ke1 {[%clk 0:00:05]}  Qb4+ {[%clk 0:00:05]} 92. Ke2 {[%clk 0:00:06]}  Qc4+ {[%clk 0:00:06]} 93. Ke3 {[%clk 0:00:06]}  Qc3+ {[%clk 0:00:06]} 94. Kf4 {[%clk 0:00:04]}  Qd4+ {[%clk 0:00:06]} 95. Kg5 {[%clk 0:00:04]}  Qg7+ {[%clk 0:00:06]} 96. Kh4 {[%clk 0:00:05]}  Qh7+ {[%clk 0:00:05]} 97. Rh5 {[%clk 0:00:03]}  Qe4+ {[%clk 0:00:05]} 98. Kg3 {[%clk 0:00:03]}  Qg6+ {[%clk 0:00:06]} 99. Kh4 {[%clk 0:00:04]}  Qe4+ {[%clk 0:00:06]} 100. Kg3 {[%clk 0:00:04]}  Qg6+ {[%clk 0:00:06]} 101. Kh4 {[%clk 0:00:03]}  Qe4+ {[%clk 0:00:05]} 1/2-1/2


[Site "https://www.chess.com"]